fUST/lending_fUST_20240621
["ID","MTS","AMOUNT","RATE_DAILY","PERIOD"]
[330060101,1718974254952,-151.0,0.00039999,7]
[330060102,1718974254961,-437.942791,0.00039999,7]
[330060103,1718974254970,-437.942791,0.00039999,7]
[330060104,1718974254979,-151.0,0.00039999,7]
[330060105,1718974254989,-4825.61153713,0.0004,2]
[330060106,1718974254999,-6400.00844349,0.0004,4]
[330060107,1718974255009,-500.0,0.0004,2]
[330060108,1718974255019,-8697.69074991,0.0004,120]
[330060109,1718974255028,-866.55961696,0.0004,120]
[330060110,1718974255038,-500.0,0.0004,120]
[330060111,1718974255047,-152.347886,0.0004,7]
[330060112,1718974255057,-152.347886,0.0004,7]
[330060113,1718974255067,-151.0,0.0004,7]
[330060114,1718974255077,-191.49935,0.0004,7]
[330060115,1718974255088,-191.49935,0.0004,7]
[330060116,1718974255098,-151.0,0.0004,7]
[330060117,1718974255108,-151.0,0.0004,7]
[330060118,1718974255118,-1695.497189,0.0004,7]
[330060119,1718974255127,-1695.497189,0.0004,7]
[330060120,1718974255138,-286.641994,0.0004,7]
[330060121,1718974255148,-286.641994,0.0004,7]
[330060122,1718974255157,-573.44262153,0.00040701,4]
[330060123,1718974255167,-500.0,0.00041,2]
[330060124,1718974255176,-178.8560864,0.00041096,2]
[330060125,1718974255186,-620.0,0.00041183,15]
[330060126,1718974255196,-153.0,0.00041532,2]
[330060127,1718974255205,-153.0,0.00041532,2]
[330060128,1718974255214,-153.0,0.00041532,2]
[330060129,1718974255224,-153.0,0.00041532,2]
[330060130,1718974255234,-153.0,0.00041532,2]
[330060131,1718974255243,-153.0,0.00041532,2]
[330060132,1718974255252,-153.0,0.00041532,2]
[330060133,1718974255262,-482.85577951,0.0004159,30]
[330060134,1718974255271,-153.0,0.00041655,2]
[330060135,1718974255281,-153.0,0.00041655,2]
[330060136,1718974255290,-153.0,0.00041655,2]
[330060137,1718974255300,-153.0,0.00041655,2]
[330060138,1718974255309,-153.0,0.00041655,2]
[330060139,1718974255321,-153.0,0.00041655,2]
[330060140,1718974255330,-153.0,0.00041655,2]
[330060141,1718974255341,-153.0,0.00041663,2]
[330060142,1718974255351,-153.0,0.00041663,2]
[330060143,1718974255360,-153.0,0.00041663,2]
[330060144,1718974255370,-153.0,0.00041663,2]
[330060145,1718974255380,-153.0,0.00041663,2]
[330060146,1718974255389,-153.0,0.00041663,2]
[330060147,1718974255399,-153.0,0.00041663,2]
[330060148,1718974255410,-153.0,0.00041915,2]
[330060149,1718974255419,-153.0,0.00041915,2]
[330060150,1718974255429,-153.0,0.00041915,2]
[330060151,1718974255439,-153.0,0.00041915,2]
[330060152,1718974255448,-153.0,0.00041915,2]
[330060153,1718974255458,-153.0,0.00041915,2]
[330060154,1718974255467,-153.0,0.00041915,2]
[330060155,1718974255477,-153.0,0.00041919,2]
[330060156,1718974255487,-153.0,0.00041919,2]
[330060157,1718974255496,-153.0,0.00041919,2]
[330060158,1718974255506,-153.0,0.00041919,2]
[330060159,1718974255516,-153.0,0.00041919,2]
[330060160,1718974255525,-153.0,0.00041919,2]
[330060161,1718974255535,-153.0,0.00041919,2]
[330060162,1718974255544,-153.0,0.00041919,2]
[330060163,1718974255554,-153.0,0.00041919,2]
[330060164,1718974255563,-153.0,0.00041919,2]
[330060165,1718974255574,-153.0,0.00041919,2]
[330060166,1718974255667,-153.0,0.00041919,2]
[330060167,1718974255686,-153.0,0.00041919,2]
[330060168,1718974255697,-153.0,0.00041919,2]
[330060169,1718974255706,-500.0,0.00042,2]
[330060170,1718974255716,-500.0,0.00042,120]
[330060171,1718974255725,-260.0,0.00042,2]
[330060172,1718974255734,-260.0,0.00042,2]
[330060173,1718974255744,-260.0,0.00042,2]
[330060174,1718974255761,-149999.0,0.000428,60]
[330060175,1718974255770,-152.347886,0.000428,14]
[330060176,1718974255780,-152.347886,0.000428,14]
[330060177,1718974255789,-151.0,0.000428,14]
[330060178,1718974255802,-191.49935,0.000428,14]
[330060179,1718974255811,-191.49935,0.000428,14]
[330060180,1718974255821,-151.0,0.000428,14]
[330060181,1718974255831,-151.0,0.000428,14]
[330060182,1718974255840,-1695.497189,0.000428,14]
[330060183,1718974255849,-1695.497189,0.000428,14]
[330060184,1718974255859,-286.641994,0.000428,14]
[330060185,1718974255868,-286.641994,0.000428,14]
[330060186,1718974255878,-835.515399,0.000428,14]
[330060187,1718974255887,-196.014894,0.000428,14]
[330060188,1718974255896,-835.515399,0.000428,14]
[330060189,1718974255906,-196.014894,0.000428,14]
[330060190,1718974255915,-151.0,0.000428,14]
[330060191,1718974255924,-152.806506,0.000428,14]
[330060192,1718974255933,-1649.06026,0.000428,14]
[330060193,1718974255942,-1507.380774,0.000428,14]
[330060194,1718974255951,-1649.06026,0.000428,14]
[330060195,1718974255961,-1507.380774,0.000428,14]
[330060196,1718974255970,-151.0,0.000428,14]
[330060197,1718974255979,-924.926339,0.000428,14]
[330060198,1718974255988,-151.0,0.000428,14]
[330060199,1718974255998,-2601.621665,0.000428,14]
[330060200,1718974256008,-1401.811791,0.000428,14]
[330060201,1718974256017,-924.926339,0.000428,14]
[330060202,1718974256026,-151.0,0.000428,14]
[330060203,1718974256036,-1401.811791,0.000428,14]
[330060204,1718974256045,-2601.621665,0.000428,14]
[330060205,1718974256054,-864.386967,0.000428,14]
[330060206,1718974256063,-151.0,0.000428,14]
[330060207,1718974256074,-264.605845,0.000428,14]
[330060208,1718974256083,-864.386967,0.000428,14]
[330060209,1718974256092,-2336.529329,0.000428,14]
[330060210,1718974256101,-2336.529329,0.000428,14]
[330060211,1718974256110,-231.092816,0.000428,14]
[330060212,1718974256120,-437.942791,0.000428,14]
[330060213,1718974256129,-437.942791,0.000428,14]
[330060214,1718974256139,-151.0,0.000428,14]
[330060215,1718974256148,-501.0,0.00042899,2]
[330060216,1718974256158,-151.064,0.00042899,2]
[330060217,1718974256167,-1752.0,0.00042899,2]
[330060218,1718974256177,-150.506,0.00042899,2]
[330060219,1718974256187,-500.0,0.00043,2]
[330060220,1718974256196,-86228.12,0.00043,30]
[330060221,1718974256206,-2854.88640247,0.00043021,28]
[330060222,1718974256216,-151.0,0.00043048,31]
[330060223,1718974256226,-437.942791,0.00043132,14]
[330060224,1718974256235,-437.942791,0.00043132,14]
[330060225,1718974256245,-151.0,0.00043132,14]
[330060226,1718974256255,-2076.6970503,0.00043132,2]
[330060227,1718974256265,-2076.6970503,0.00043132,2]
[330060228,1718974256274,-2076.6970503,0.00043132,2]
[330060229,1718974256284,-2076.6970503,0.00043132,2]
[330060230,1718974256294,-2076.6970503,0.00043132,2]
[330060231,1718974256304,-2076.6970503,0.00043132,2]
[330060232,1718974256314,-2076.6970503,0.00043132,2]
[330060233,1718974256327,-2076.6970503,0.00043132,2]
[330060234,1718974256343,-2076.6970503,0.00043132,2]
[330060235,1718974256353,-2076.6970503,0.00043132,2]
[330060236,1718974256362,-151.0,0.00043139,14]
[330060237,1718974256371,-151.0,0.00043139,14]
[330060238,1718974256381,-2601.621665,0.00043139,14]
[330060239,1718974256390,-151.0,0.00043139,14]
[330060240,1718974256399,-2601.621665,0.00043139,14]
[330060241,1718974256408,-864.386967,0.00043139,14]
[330060242,1718974256417,-151.0,0.00043139,14]
[330060243,1718974256427,-864.386967,0.00043139,14]
[330060244,1718974256436,-2336.529329,0.00043139,14]
[330060245,1718974256445,-2336.529329,0.00043139,14]
[330060246,1718974256454,-620.0,0.00043242,15]
[330060247,1718974256464,-500.0,0.00044,4]
[330060248,1718974256473,-500.0,0.00044,120]
[330060249,1718974256483,-804.91298822,0.00044865,4]
[330060250,1718974256492,-810.56243048,0.00044865,4]
[330060251,1718974256502,-804.91298822,0.00044865,4]
[330060252,1718974256512,-500.0,0.00045,4]
[330060253,1718974256522,-106636.60099575,0.00045,120]
[330060254,1718974256531,-769.75676566,0.00045,120]
[330060255,1718974256541,-151.0,0.00045,14]
[330060256,1718974256551,-151.0,0.00045,14]
[330060257,1718974256560,-151.0,0.00045,14]
[330060258,1718974256574,-151.0,0.00045,14]
[330060259,1718974256583,-319.90936,0.00045,14]
[330060260,1718974256593,-319.90936,0.00045,14]
[330060261,1718974256602,-151.0,0.00045,14]
[330060262,1718974256611,-152.347886,0.00045,14]
[330060263,1718974256621,-152.347886,0.00045,14]
[330060264,1718974256631,-93297.44905016,0.00045,10]
[330060265,1718974256642,-258.38648,0.00045,14]
[330060266,1718974256652,-191.49935,0.00045,14]
[330060267,1718974256662,-191.49935,0.00045,14]
[330060268,1718974256672,-151.0,0.00045,14]
[330060269,1718974256683,-246.08245,0.00045,14]
[330060270,1718974256693,-151.0,0.00045,14]
[330060271,1718974256702,-151.0,0.00045,14]
[330060272,1718974256712,-1695.497189,0.00045,14]
[330060273,1718974256722,-1695.497189,0.00045,14]
[330060274,1718974256737,-1695.497189,0.00045,14]
[330060275,1718974256754,-1695.497189,0.00045,14]
[330060276,1718974256770,-286.641994,0.00045,14]
[330060277,1718974256783,-286.641994,0.00045,14]
[330060278,1718974256798,-286.641994,0.00045,14]
[330060279,1718974256812,-286.641994,0.00045,14]
[330060280,1718974256834,-835.515399,0.00045,14]
[330060281,1718974256848,-196.014894,0.00045,14]
[330060282,1718974256863,-835.515399,0.00045,14]
[330060283,1718974256881,-196.014894,0.00045,14]
[330060284,1718974256895,-151.0,0.00045,14]
[330060285,1718974256908,-1649.06026,0.00045,14]
[330060286,1718974256920,-1507.380774,0.00045,14]
[330060287,1718974256934,-1649.06026,0.00045,14]
[330060288,1718974256948,-1507.380774,0.00045,14]
[330060289,1718974256962,-151.0,0.00045,14]
[330060290,1718974256973,-924.926339,0.00045,14]
[330060291,1718974256987,-296.522,0.00045,14]
[330060292,1718974257000,-1401.811791,0.00045,14]
[330060293,1718974257014,-2601.621665,0.00045,14]
[330060294,1718974257027,-924.926339,0.00045,14]
[330060295,1718974257042,-151.0,0.00045,14]
[330060296,1718974257058,-1401.811791,0.00045,14]
[330060297,1718974257072,-2601.621665,0.00045,14]
[330060298,1718974257083,-864.386967,0.00045,14]
[330060299,1718974257093,-151.0,0.00045,14]
[330060300,1718974257106,-864.386967,0.00045,14]
[330060301,1718974257119,-2336.529329,0.00045,14]
[330060302,1718974257132,-2336.529329,0.00045,14]
[330060303,1718974257144,-437.942791,0.00045,14]
[330060304,1718974257157,-437.942799,0.00045,14]
[330060305,1718974257169,-151.0,0.00045,14]
[330060306,1718974257182,-260.0,0.00045,2]
[330060307,1718974257194,-260.0,0.00045,2]
[330060308,1718974257206,-151.0,0.00045047,31]
[330060309,1718974257218,-620.0,0.00045404,15]
[330060310,1718974257229,-660.310887,0.00045494,2]
[330060311,1718974257240,-501.46,0.00045678,7]
[330060312,1718974257251,-835.515399,0.00045678,14]
[330060313,1718974257262,-196.014894,0.00045678,14]
[330060314,1718974257273,-835.515399,0.00045678,14]
[330060315,1718974257284,-196.014894,0.00045678,14]
[330060316,1718974257294,-501.0,0.00045899,2]
[330060317,1718974257306,-150.0,0.00045899,2]
[330060318,1718974257317,-1752.0,0.00045899,2]
[330060319,1718974257328,-151.0,0.00045899,14]
[330060320,1718974257339,-1649.06026,0.00045899,14]
[330060321,1718974257349,-1507.380774,0.00045899,14]
[330060322,1718974257360,-1649.06026,0.00045899,14]
[330060323,1718974257371,-1507.380774,0.00045899,14]
[330060324,1718974257382,-924.926339,0.00045899,14]
[330060325,1718974257394,-1401.811791,0.00045899,14]
[330060326,1718974257405,-924.926339,0.00045899,14]
[330060327,1718974257417,-1401.811791,0.00045899,14]
[330060328,1718974257428,-500.0,0.00046,7]
[330060329,1718974257438,-335.3,0.00046321,31]
[330060330,1718974257449,-150.96651356,0.00046455,30]
[330060331,1718974257460,-1577.55295446,0.0004651,30]
[330060332,1718974257471,-1031.89902221,0.00046517,30]
[330060333,1718974257481,-956.88441321,0.00046656,30]
[330060334,1718974257493,-1031.89902221,0.00046684,30]
[330060335,1718974257504,-5065.55752805,0.00046691,15]
[330060336,1718974257515,-1031.89902221,0.00046718,30]
[330060337,1718974257526,-335.3,0.00046846,60]
[330060338,1718974257537,-1031.89902221,0.00046976,30]
[330060339,1718974257549,-956.88441321,0.00046999,30]
[330060340,1718974257559,-500.0,0.00047,7]
[330060341,1718974257573,-1577.55295446,0.00047025,30]
[330060342,1718974257584,-5065.55752805,0.00047043,15]
[330060343,1718974257594,-151.0,0.00047046,60]
[330060344,1718974257605,-1577.55295446,0.00047073,30]
[330060345,1718974257616,-1577.55295446,0.00047107,30]
[330060346,1718974257626,-956.88441321,0.00047112,30]
[330060347,1718974257637,-1577.55295446,0.00047167,30]
[330060348,1718974257648,-956.88441321,0.00047196,30]
[330060349,1718974257659,-164.13841529,0.0004731,30]
[330060350,1718974257670,-335.3,0.0004737,60]
[330060351,1718974257682,-152.0,0.0004737,60]
[330060352,1718974257693,-5065.55752805,0.0004738,15]
[330060353,1718974257704,-1577.55295446,0.00047408,30]
[330060354,1718974257715,-5065.55752805,0.00047457,15]
[330060355,1718974257728,-956.88441321,0.00047476,30]
[330060356,1718974257739,-150.96651356,0.00047477,30]
[330060357,1718974257751,-150.96651356,0.00047509,30]
[330060358,1718974257766,-1031.89902221,0.00047693,30]
[330060359,1718974257778,-2204.85660998,0.000477,2]
[330060360,1718974257788,-164.13841529,0.00047809,30]
[330060361,1718974257800,-335.3,0.00047895,60]
[330060362,1718974257812,-152.0,0.00047895,60]
[330060363,1718974257825,-956.88441321,0.00047908,30]
[330060364,1718974257838,-5065.55752805,0.00047918,15]
[330060365,1718974257851,-1500.0,0.00047945,120]
[330060366,1718974257863,-5065.55752805,0.00047952,15]
[330060367,1718974257877,-956.88441321,0.00047958,30]
[330060368,1718974257888,-500.0,0.00048,7]
[330060369,1718974257901,-500.0,0.00048,120]
[330060370,1718974257912,-260.0,0.00048,2]
[330060371,1718974257924,-1577.55295446,0.00048073,30]
[330060372,1718974257936,-1031.89902221,0.00048091,30]
[330060373,1718974257947,-956.88441321,0.0004814,30]
[330060374,1718974257959,-2854.88640247,0.00048145,28]
[330060375,1718974257971,-1500.0,0.00048219,120]
[330060376,1718974257982,-150.96651356,0.00048234,30]
[330060377,1718974257994,-95376.74060568,0.0004826,2]
[330060378,1718974258005,-186.870059,0.0004826,14]
[330060379,1718974258016,-151.0,0.0004826,14]
[330060380,1718974258029,-151.0,0.0004826,14]
[330060381,1718974258199,-319.90936,0.0004826,14]
[330060382,1718974258226,-319.90936,0.0004826,14]
[330060383,1718974258236,-151.0,0.0004826,14]
[330060384,1718974258246,-152.347886,0.0004826,14]
[330060385,1718974258256,-152.347886,0.0004826,14]
[330060386,1718974258265,-191.49935,0.0004826,14]
[330060387,1718974258275,-191.49935,0.0004826,14]
[330060388,1718974258284,-152.020171,0.0004826,14]
[330060389,1718974258293,-1695.497189,0.0004826,14]
[330060390,1718974258302,-1695.497194,0.0004826,14]
[330060391,1718974258312,-286.641994,0.0004826,14]
[330060392,1718974258325,-286.642,0.0004826,14]
[330060393,1718974258334,-835.515399,0.0004826,14]
[330060394,1718974258343,-196.014894,0.0004826,14]
[330060395,1718974258352,-835.515396,0.0004826,14]
[330060396,1718974258361,-196.014902,0.0004826,14]
[330060397,1718974258370,-151.0,0.0004826,14]
[330060398,1718974258379,-1649.06026,0.0004826,14]
[330060399,1718974258388,-1507.380774,0.0004826,14]
[330060400,1718974258397,-1649.06026,0.0004826,14]
[330060401,1718974258406,-1507.38078,0.0004826,14]
[330060402,1718974258416,-151.0,0.0004826,14]
[330060403,1718974258425,-924.926339,0.0004826,14]
[330060404,1718974258435,-2601.621665,0.0004826,14]
[330060405,1718974258443,-1401.811791,0.0004826,14]
[330060406,1718974258453,-924.926339,0.0004826,14]
[330060407,1718974258463,-151.0,0.0004826,14]
[330060408,1718974258472,-1401.811791,0.0004826,14]
[330060409,1718974258481,-2601.621669,0.0004826,14]
[330060410,1718974258490,-151.0,0.0004826,14]
[330060411,1718974258499,-864.386967,0.0004826,14]
[330060412,1718974258509,-864.386969,0.0004826,14]
[330060413,1718974258518,-2336.529329,0.0004826,14]
[330060414,1718974258527,-2336.52932744,0.0004826,14]
[330060415,1718974258537,-1577.55295446,0.0004829,30]
[330060416,1718974258546,-1577.55295446,0.00048331,30]
[330060417,1718974258556,-956.88441321,0.00048375,30]
[330060418,1718974258566,-335.3,0.0004842,60]
[330060419,1718974258578,-152.0,0.0004842,60]
[330060420,1718974258588,-956.88441321,0.00048421,30]
[330060421,1718974258598,-1031.89902221,0.00048427,30]
[330060422,1718974258608,-1031.89902221,0.00048439,30]
[330060423,1718974258617,-5065.55752805,0.00048451,15]
[330060424,1718974258627,-1577.55295446,0.00048487,30]
[330060425,1718974258636,-1500.0,0.00048493,120]
[330060426,1718974258646,-5065.55752805,0.0004852,15]
[330060427,1718974258656,-1577.55295446,0.00048646,30]
[330060428,1718974258667,-1577.55295446,0.00048673,30]
[330060429,1718974258676,-1031.89902221,0.00048757,30]
[330060430,1718974258685,-1500.0,0.00048767,120]
[330060431,1718974258695,-5065.55752805,0.00048778,15]
[330060432,1718974258704,-20000.0,0.000488,120]
[330060433,1718974258713,-501.0,0.00048899,2]
[330060434,1718974258723,-150.0,0.00048899,2]
[330060435,1718974258732,-1752.0,0.00048899,2]
[330060436,1718974258742,-335.3,0.00048945,60]
[330060437,1718974258757,-152.0,0.00048945,60]
[330060438,1718974258770,-500.0,0.00049,7]
[330060439,1718974258781,-1577.55295446,0.00049035,30]
[330060440,1718974258791,-1500.0,0.00049041,120]
[330060441,1718974258803,-151.0,0.00049045,60]
[330060442,1718974258813,-164.13841529,0.00049074,30]
[330060443,1718974258825,-956.88441321,0.00049191,30]
[330060444,1718974258835,-1577.55295446,0.00049204,30]
[330060445,1718974258844,-956.88441321,0.0004922,30]
[330060446,1718974258854,-1031.89902221,0.00049221,30]
[330060447,1718974258863,-956.88441321,0.0004924,30]
[330060448,1718974258873,-1577.55295446,0.00049276,30]
[330060449,1718974258883,-5065.55752805,0.00049286,15]
[330060450,1718974258893,-1577.55295446,0.00049307,30]
[330060451,1718974258903,-1500.0,0.00049315,120]
[330060452,1718974258912,-500.0,0.00049315,30]
[330060453,1718974258922,-306.0,0.00049342,2]
[330060454,1718974258932,-956.88441321,0.00049406,30]
[330060455,1718974258942,-335.3,0.00049469,60]
[330060456,1718974258953,-152.0,0.00049469,60]
[330060457,1718974258962,-5065.55752805,0.00049482,15]
[330060458,1718974258972,-1500.0,0.00049589,120]
[330060459,1718974258983,-956.88441321,0.0004959,30]
[330060460,1718974258993,-154.24002068,0.00049595,30]
[330060461,1718974259002,-150.96651356,0.00049601,30]
[330060462,1718974259014,-956.88441321,0.00049601,30]
[330060463,1718974259024,-956.88441321,0.00049637,30]
[330060464,1718974259034,-63401.57279893,0.000498,90]
[330060465,1718974259044,-5350.06523364,0.000498,90]
[330060466,1718974259056,-10000.0,0.000498,20]
[330060467,1718974259067,-21446.05,0.000498,120]
[330060468,1718974259075,-270.03102592,0.000498,2]
[330060469,1718974259084,-1500.0,0.00049863,120]
[330060470,1718974259093,-177.83363645,0.00049899,4]
[330060471,1718974259102,-800.0,0.000499,5]
[330060472,1718974259113,-800.0,0.000499,4]
[330060473,1718974259124,-594.0,0.000499,30]
[330060474,1718974259133,-1031.89902221,0.0004995,30]
[330060475,1718974259145,-335.3,0.00049994,60]
[330060476,1718974259154,-152.0,0.00049994,60]
[330060477,1718974259163,-151.0,0.00049999,14]
[330060478,1718974259172,-319.90936,0.00049999,14]
[330060479,1718974259182,-319.90936,0.00049999,14]
[330060480,1718974259191,-151.0,0.00049999,14]
[330060481,1718974259200,-129317.94430355,0.0005,120]
[330060482,1718974259210,-2863.59460902,0.0005,60]
[330060483,1718974259219,-541.64940016,0.0005,7]
[330060484,1718974259228,-10000.0,0.0005,70]
[330060485,1718974259238,-151.0,0.0005,14]
[330060486,1718974259247,-151.551018,0.0005,14]
[330060487,1718974259256,-151.0,0.0005,14]
[330060488,1718974259266,-151.0,0.0005,14]
[330060489,1718974259275,-151.0,0.0005,14]
[330060490,1718974259284,-244.633128,0.0005,14]
[330060491,1718974259293,-500.0,0.0005,120]
[330060492,1718974259303,-319.90936,0.0005,14]
[330060493,1718974259312,-319.90936,0.0005,14]
[330060494,1718974259325,-319.90936,0.0005,14]
[330060495,1718974259335,-319.909358,0.0005,14]
[330060496,1718974259349,-443.35489618,0.0005,2]
[330060497,1718974259552,-1556.64510382,0.0005,2]
[330060498,1718974259562,-152.347886,0.0005,14]
[330060499,1718974259576,-152.34788,0.0005,14]
[330060500,1718974259585,-138.65913018,0.0005,14]
[330060502,1718974539417,175.89997227,9.999e-05,2]
[330060503,1718974593087,521.51729955,9.999e-05,2]
[330060504,1718974606374,490.6601857,0.0001212,2]
[330060506,1718974706559,400.0,0.00026,60]
[330060507,1718974732315,154.82195475,9.999e-05,2]
[330060508,1718974750480,932.60140374,9.999e-05,2]
[330060509,1718974752817,157.28536583,0.00014691,2]
[330060510,1718974770785,932.60140374,0.0001212,2]
[330060511,1718974807787,988.45757761,0.0001212,2]
[330060512,1718974891880,1503.59915807,9.999e-05,2]
[330060513,1718974909378,1503.59915807,0.00014691,2]
[330060514,1718974951218,154.82195475,9.999e-05,2]
[330060515,1718975032533,155.70368058,0.00016038,7]
[330060516,1718975180052,154.83742071,9.999e-05,2]
[330060517,1718975187784,1977.87791658,9.999e-05,2]
[330060518,1718975193004,164.09213231,0.00016038,2]
[330060519,1718975216250,1977.87791658,0.0001212,2]
[330060520,1718975217556,154.83742071,0.0001212,2]
[330060521,1718975237556,154.83742071,0.0001212,2]
[330060522,1718975241246,1977.87791658,0.0001212,2]
[330060523,1718975302595,209.66974826,0.00014691,2]
[330060524,1718975319255,1977.87791658,0.00014691,2]
[330060525,1718975321510,-559.29683883,0.00016137,2]
[330060528,1718975321557,-559.29683883,0.00016137,2]
[330060530,1718975321602,-345.81447756,0.00016137,2]
[330060538,1718975405494,-39.19100285,0.00016137,2]
[330060539,1718975405548,-1588.97910791,0.000189,2]
[330060540,1718975414580,-39.19100285,0.000189,2]
[330060610,1718975438397,-532.733165,0.00021096,2]
[330060611,1718975438407,-164.850625,0.00021096,2]
[330060613,1718975438417,-707.71057376,0.00023,2]
[330060614,1718975438429,-1632.09165544,0.00023,2]
[330060636,1718975440507,-1977.87791658,0.00022909,2]
[330060638,1718975440518,-2660.1977708,0.00023,2]
[330060639,1718975440528,-166.550336,0.00023468,2]
[330060641,1718975440538,-300.0,0.00023469,2]
[330060643,1718975440548,-300.0,0.00023469,2]
[330060644,1718975440558,-3000.0,0.0002347,2]
[330060645,1718975440568,-1628.17011076,0.000239,2]
[330060646,1718975440578,-166.666666,0.00024449,2]
[330060647,1718975440588,-166.647942,0.00024567,2]
[330060648,1718975440598,-150.0,0.000246,2]
[330060649,1718975440608,-380.0,0.00024658,2]
[330060650,1718975440618,-250.0,0.00024683,2]
[330060651,1718975440628,-430.1738606,0.00024713,2]
[330060652,1718975440638,-166.666666,0.00025115,2]
[330060653,1718975440647,-420.0,0.00025465,2]
[330060654,1718975440657,-166.666666,0.00025782,2]
[330060655,1718975440667,-420.0,0.00025816,2]
[330060656,1718975440677,-166.666666,0.00026448,2]
[330060657,1718975440687,-166.666666,0.00027115,2]
[330060658,1718975440697,-532.733165,0.00027195,2]
[330060659,1718975440708,-166.666666,0.00027781,2]
[330060660,1718975440717,-652.83724003,0.00028,2]
[330060661,1718975440727,-190.0,0.00028398,2]
[330060663,1718975440736,-500.0,0.00028874,2]
[330060665,1718975440746,-165.73979311,0.00028874,2]
[330060666,1718975440756,-500.0,0.00028874,2]
[330060667,1718975440766,-500.0,0.00028874,2]
[330060668,1718975440776,-500.0,0.00028874,2]
[330060669,1718975440785,-500.0,0.00028874,2]
[330060670,1718975440795,-299.36545204,0.00028874,2]
[330060671,1718975440805,-500.0,0.00028874,2]
[330060672,1718975440815,-500.0,0.00028874,2]
[330060673,1718975440825,-500.0,0.00028874,2]
[330060674,1718975440835,-500.0,0.00028874,2]
[330060675,1718975440844,-500.0,0.00028874,2]
[330060676,1718975440854,-500.0,0.00028874,2]
[330060677,1718975440864,-500.0,0.00028874,2]
[330060678,1718975441033,-500.0,0.00028874,2]
[330060679,1718975441043,-23197.40371249,0.00028875,2]
[330060680,1718975441219,-1200.57493277,0.00028875,2]
[330060716,1718975446384,-502.02135474,0.00028875,2]
[330060717,1718975446393,-250.0,0.00028924,2]
[330060718,1718975446403,-200.0,0.0003,90]
[330060719,1718975446412,-188.83958797,0.00031492,2]
[330060720,1718975446421,-150.0,0.00031593,2]
[330060721,1718975446430,-150.0,0.00031593,2]
[330060722,1718975446445,-192.5,0.00031593,2]
[330060723,1718975446468,-151.55901415,0.00031593,7]
[330060724,1718975446489,-151.55901415,0.00031593,7]
[330060725,1718975446511,-151.55901415,0.00031593,7]
[330060726,1718975446540,-151.55901415,0.00031593,7]
[330060727,1718975446570,-151.55901405,0.00031593,7]
[330060728,1718975446599,-182.19760337,0.00033295,2]
[330060729,1718975446638,-350.53556163,0.00033295,2]
[330060730,1718975446662,-117.17163806,0.00033999,14]
[330060731,1718975737112,171.700658,0.00025553,61]
[330060732,1718975737359,171.700658,0.00025553,120]
[330060735,1718976156116,1583.19802264,0.00018899,2]
[330060736,1718976198786,1977.87791658,0.00018899,2]
[330060738,1718976233797,1399.73305793,0.00018899,2]
[330060763,1718976633234,-805.22951312,0.00016136,2]
[330060765,1718976633246,-971.89831503,0.00016136,2]
[330060786,1718976639369,-200.75008843,0.00016136,2]
[330060787,1718976639379,-327.41644696,0.00016136,2]
[330060788,1718976639391,-1255.78157568,0.00016136,2]
[330060789,1718976639400,-883.29485508,0.000189,2]
[330060790,1718976639410,-2094.2678165,0.00020848,2]
[330060791,1718976639420,-4319.80908274,0.00020937,2]